[Event "Austria Championship Blitz 2024"]
[Site "Innsbruck"]
[Date "2024.06.01"]
[Round "5.12"]
[White "Vrban, Damir"]
[Black "Hatzl, Johannes"]
[Result "1/2-1/2"]
[ECO "B01"]
[WhiteElo "2151"]
[BlackElo "2074"]
[Annotator "RC"]
[PlyCount "47"]
[EventDate "2024.06.01"]
[EventType "swiss"]
[EventCountry "AUT"]
[SourceTitle "playchess.com"]
[Source "ChessBase"]
[SourceQuality "1"]
[TimeControl "180+2"]

1. e4 {[%emt 0:00:05]} d5 {[%emt 0:00:00]} 2. d3 {[%emt 0:00:02]} dxe4 {[%emt 0:00:02]} 3. dxe4 {[%emt 0:00:01]} Qxd1+ {[%emt 0:00:02]} 4. Kxd1 {[%emt 0:00:01]} e5 {[%emt 0:00:05]} 5. Nf3 {[%emt 0:00:17]} f6 {[%emt 0:00:01]} 6. Be3 {[%emt 0:00:18]} Be6 {[%emt 0:00:04]} 7. Nbd2 {[%emt 0:00:09]} Nc6 {[%emt 0:00:13]} 8. c3 {[%emt 0:00:07]} Bd6 {[%emt 0:00:17]} 9. Bc4 {[%emt 0:00:08]} Bxc4 {[%emt 0:00:10]} 10. Nxc4 {[%emt 0:00:01]} O-O-O {[%emt 0:00:03]} 11. Nxd6+ {[%emt 0:00:07]} Rxd6+ {[%emt 0:00:01]} 12. Kc2 {[%emt 0:00:01]} Nge7 {[%emt 0:00:02]} 13. Rad1 {[%emt 0:00:03]} Rhd8 {[%emt 0:00:04]} 14. Rxd6 {[%emt 0:00:02]} Rxd6 {[%emt 0:00:09]} 15. b4 {[%emt 0:00:06]} a6 {[%emt 0:00:07]} 16. a4 {[%emt 0:00:01]} g6 {[%emt 0:00:17]} 17. Nd2 {[%emt 0:00:09]} Rd7 {[%emt 0:00:08]} 18. Nc4 {[%emt 0:00:16]} Nd8 {[%emt 0:00:32]} 19. b5 {[%emt 0:00:10]} axb5 {[%emt 0:00:02]} 20. axb5 {[%emt 0:00:01]} Ne6 {[%emt 0:00:19]} 21. Ra1 {[%emt 0:00:08]} Kb8 {[%emt 0:00:08]} 22. Ba7+ {[%emt 0:00:35]} Kc8 {[%emt 0:00:01]} 23. Be3 {[%emt 0:00:09]} Kb8 {[%emt 0:00:00]} 24. Ba7+ {[%emt 0:00:06]} 1/2-1/2

[Event "Austria Championship Blitz 2024"]
[Site "Innsbruck"]
[Date "2024.06.01"]
[Round "5.13"]
[White "Froewis, Annika"]
[Black "Teuschler, Barbara"]
[Result "0-1"]
[ECO "B45"]
[WhiteElo "2075"]
[BlackElo "2040"]
[Annotator "RC"]
[PlyCount "44"]
[EventDate "2024.06.01"]
[EventType "swiss"]
[EventCountry "AUT"]
[SourceTitle "playchess.com"]
[Source "ChessBase"]
[SourceQuality "1"]
[TimeControl "180+2"]

1. e4 {[%emt 0:00:01]} c5 {[%emt 0:00:00]} 2. Nf3 {[%emt 0:00:01]} e6 {[%emt 0:00:01]} 3. d4 cxd4 4. Nxd4 {[%emt 0:00:02]} Nf6 {[%emt 0:00:01]} 5. Nc3 {[%emt 0:00:02]} Nc6 {[%emt 0:00:00]} 6. Ndb5 {[%emt 0:00:14]} Bb4 {[%emt 0:00:02]} 7. Nd6+ {[%emt 0:00:06]} Ke7 {[%emt 0:00:08]} 8. Bf4 {[%emt 0:00:18]} e5 {[%emt 0:00:24]} 9. Nf5+ {[%emt 0:00:02]} Kf8 {[%emt 0:00:00]} 10. Bg5 {[%emt 0:00:02]} d5 {[%emt 0:00:05]} 11. a3 {[%emt 0:00:13]} Bxc3+ {[%emt 0:00:22]} 12. bxc3 {[%emt 0:00:01]} Qa5 {[%emt 0:01:00]} 13. Be2 {[%emt 0:01:06]} Nxe4 {[%emt 0:00:05]} 14. Nxg7 {[%emt 0:01:04]} Nxg5 {[%emt 0:00:09]} 15. Nh5 {[%emt 0:00:03]} Qxc3+ {[%emt 0:00:03]} 16. Kf1 {[%emt 0:00:01]} Be6 {[%emt 0:00:11]} 17. Rb1 {[%emt 0:00:07]} Rb8 {[%emt 0:00:19]} 18. Rb3 {[%emt 0:00:04]} Qc5 {[%emt 0:00:01]} 19. Rg3 {[%emt 0:00:06]} Ne4 {[%emt 0:00:01]} 20. Rf3 {[%emt 0:00:01]} Bg4 {[%emt 0:00:04]} 21. Qc1 {[%emt 0:00:07]} Bxf3 {[%emt 0:00:08]} 22. Qh6+ {[%emt 0:00:02]} Ke8 {[%emt 0:00:00]} 0-1

[Event "Austria Championship Blitz 2024"]
[Site "Innsbruck"]
[Date "2024.06.01"]
[Round "5.14"]
[White "Polterauer, Chiara"]
[Black "Schnegg, Anna-Lena"]
[Result "1-0"]
[ECO "B06"]
[WhiteElo "2136"]
[BlackElo "2124"]
[Annotator "RC"]
[PlyCount "77"]
[EventDate "2024.06.01"]
[EventType "swiss"]
[EventCountry "AUT"]
[SourceTitle "playchess.com"]
[Source "ChessBase"]
[SourceQuality "1"]
[TimeControl "180+2"]

1. e4 {[%emt 0:00:01]} g6 {[%emt 0:00:02]} 2. d4 {[%emt 0:00:01]} Bg7 {[%emt 0:00:01]} 3. Nc3 {[%emt 0:00:03]} e6 {[%emt 0:00:01]} 4. Be3 {[%emt 0:00:04]} Ne7 {[%emt 0:00:01]} 5. Qd2 {[%emt 0:00:02]} d5 {[%emt 0:00:05]} 6. f3 {[%emt 0:00:08]} Nd7 {[%emt 0:00:20]} 7. exd5 {[%emt 0:00:16]} Nxd5 {[%emt 0:00:08]} 8. Nxd5 {[%emt 0:00:02]} exd5 {[%emt 0:00:01]} 9. O-O-O {[%emt 0:00:04]} Nf6 {[%emt 0:00:19]} 10. Ne2 {[%emt 0:00:18]} Bf5 {[%emt 0:00:33]} 11. g4 {[%emt 0:00:04]} Bd7 {[%emt 0:00:44]} 12. Nf4 {[%emt 0:00:05]} Qe7 {[%emt 0:00:06]} 13. g5 {[%emt 0:00:06]} Nh5 {[%emt 0:00:16]} 14. Nxd5 {[%emt 0:00:05]} Qd6 {[%emt 0:00:01]} 15. Bc4 {[%emt 0:00:13]} O-O-O {[%emt 0:00:06]} 16. Bb3 {[%emt 0:00:30]} Bc6 {[%emt 0:00:10]} 17. c4 {[%emt 0:00:22]} Bxd5 {[%emt 0:00:05]} 18. cxd5 {[%emt 0:00:01]} f6 {[%emt 0:00:03]} 19. Kb1 {[%emt 0:00:05]} Rde8 {[%emt 0:00:09]} 20. Rhe1 {[%emt 0:00:05]} f5 {[%emt 0:00:10]} 21. Rc1 {[%emt 0:00:04]} Kb8 {[%emt 0:00:03]} 22. f4 {[%emt 0:00:12]} Re7 {[%emt 0:00:06]} 23. Rc3 {[%emt 0:00:04]} Rhe8 {[%emt 0:00:02]} 24. Rec1 {[%emt 0:00:01]} h6 {[%emt 0:00:05]} 25. Ba4 {[%emt 0:00:02]} Rd8 {[%emt 0:00:03]} 26. Bd1 {[%emt 0:00:12]} Qxd5 {[%emt 0:00:07]} 27. Bxh5 {[%emt 0:00:02]} gxh5 {[%emt 0:00:01]} 28. Rc5 {[%emt 0:00:03]} Qd6 {[%emt 0:00:02]} 29. gxh6 {[%emt 0:00:11]} Bxh6 {[%emt 0:00:01]} 30. Qc3 {[%emt 0:00:04]} Bg7 {[%emt 0:00:03]} 31. Rxf5 {[%emt 0:00:02]} Rde8 {[%emt 0:00:04]} 32. Bf2 {[%emt 0:00:12]} Qg6 {[%emt 0:00:01]} 33. Qc2 {[%emt 0:00:03]} Rc8 {[%emt 0:00:04]} 34. Rg5 {[%emt 0:00:03]} Qf6 {[%emt 0:00:02]} 35. Bg3 {[%emt 0:00:06]} Bh6 {[%emt 0:00:01]} 36. Rxh5 {[%emt 0:00:03]} Bxf4 {[%emt 0:00:03]} 37. Rf5 {[%emt 0:00:01]} Qh6 {[%emt 0:00:04]} 38. Rxf4 {[%emt 0:00:18]} Rd7 {[%emt 0:00:02]} 39. Rf5 {[%emt 0:00:00]} 1-0

[Event "Austria Championship Blitz 2024"]
[Site "Innsbruck"]
[Date "2024.06.01"]
[Round "5.15"]
[White "Schnegg, Daniel"]
[Black "Wimmer, Michael"]
[Result "1-0"]
[ECO "A02"]
[WhiteElo "2115"]
[BlackElo "2142"]
[Annotator "RC"]
[PlyCount "59"]
[EventDate "2024.06.01"]
[EventType "swiss"]
[EventCountry "AUT"]
[SourceTitle "playchess.com"]
[Source "ChessBase"]
[SourceQuality "1"]
[TimeControl "180+2"]

1. f4 {[%emt 0:00:01]} e5 {[%emt 0:00:02]} 2. fxe5 {[%emt 0:00:02]} d6 {[%emt 0:00:01]} 3. exd6 {[%emt 0:00:01]} Bxd6 {[%emt 0:00:03]} 4. Nf3 {[%emt 0:00:01]} g5 {[%emt 0:00:02]} 5. g3 {[%emt 0:00:01]} Nc6 {[%emt 0:00:04]} 6. Bg2 {[%emt 0:00:06]} g4 {[%emt 0:00:11]} 7. Nh4 {[%emt 0:00:02]} Be7 {[%emt 0:00:11]} 8. Bxc6+ {[%emt 0:00:01]} bxc6 {[%emt 0:00:02]} 9. Ng2 {[%emt 0:00:03]} Bb7 {[%emt 0:00:16]} 10. e4 {[%emt 0:00:09]} c5 {[%emt 0:00:08]} 11. d3 {[%emt 0:00:02]} c4 {[%emt 0:00:08]} 12. Nc3 {[%emt 0:00:13]} Bc5 {[%emt 0:00:20]} 13. Qe2 {[%emt 0:00:24]} cxd3 {[%emt 0:00:08]} 14. cxd3 {[%emt 0:00:01]} Ba6 {[%emt 0:00:18]} 15. Nf4 {[%emt 0:00:16]} Qd4 {[%emt 0:00:10]} 16. Ncd5 {[%emt 0:00:15]} O-O-O {[%emt 0:00:13]} 17. Be3 {[%emt 0:00:05]} Bb4+ {[%emt 0:00:07]} 18. Kf1 {[%emt 0:00:04]} Qe5 {[%emt 0:00:13]} 19. Nxb4 {[%emt 0:00:03]} Nf6 {[%emt 0:00:05]} 20. Nxa6 {[%emt 0:00:04]} Qb5 {[%emt 0:00:27]} 21. d4 {[%emt 0:00:15]} Qb7 {[%emt 0:00:11]} 22. Rc1 {[%emt 0:00:01]} Ne8 {[%emt 0:00:08]} 23. Nd5 {[%emt 0:00:08]} Rxd5 {[%emt 0:00:07]} 24. exd5 {[%emt 0:00:01]} Qxd5 {[%emt 0:00:01]} 25. Rg1 {[%emt 0:00:13]} f5 {[%emt 0:00:01]} 26. Bf4 {[%emt 0:00:07]} c6 {[%emt 0:00:03]} 27. Nb4 {[%emt 0:00:02]} Qxd4 {[%emt 0:00:07]} 28. Rxc6+ {[%emt 0:00:07]} Kd8 {[%emt 0:00:06]} 29. Qd2 {[%emt 0:00:05]} Qxd2 {[%emt 0:00:03]} 30. Bxd2 {[%emt 0:00:01]} 1-0

[Event "Austria Championship Blitz 2024"]
[Site "Innsbruck"]
[Date "2024.06.01"]
[Round "5.16"]
[White "Blaas, Hansjoerg"]
[Black "Gutmann, Alois"]
[Result "1-0"]
[ECO "C06"]
[WhiteElo "2222"]
[BlackElo "1985"]
[Annotator "RC"]
[PlyCount "65"]
[EventDate "2024.06.01"]
[EventType "swiss"]
[EventCountry "AUT"]
[SourceTitle "playchess.com"]
[Source "ChessBase"]
[SourceQuality "1"]
[TimeControl "180+2"]

1. e4 {[%emt 0:00:00]} e6 {[%emt 0:00:01]} 2. d4 {[%emt 0:00:02]} d5 {[%emt 0:00:00]} 3. Nd2 {[%emt 0:00:01]} Nf6 {[%emt 0:00:01]} 4. e5 {[%emt 0:00:01]} Nfd7 {[%emt 0:00:01]} 5. Bd3 {[%emt 0:00:01]} c5 {[%emt 0:00:01]} 6. c3 {[%emt 0:00:00]} Nc6 {[%emt 0:00:02]} 7. Ne2 {[%emt 0:00:04]} a6 {[%emt 0:00:04]} 8. f4 {[%emt 0:00:03]} Qb6 {[%emt 0:00:06]} 9. Nf3 {[%emt 0:00:01]} cxd4 {[%emt 0:00:08]} 10. Nexd4 {[%emt 0:00:04]} Nxd4 {[%emt 0:00:01]} 11. Nxd4 {[%emt 0:00:02]} Nb8 {[%emt 0:00:02]} 12. O-O {[%emt 0:00:33]} Nc6 {[%emt 0:00:02]} 13. Be3 {[%emt 0:00:04]} g6 {[%emt 0:00:22]} 14. b4 {[%emt 0:00:12]} Bd7 {[%emt 0:00:12]} 15. Kh1 {[%emt 0:00:09]} Rc8 {[%emt 0:00:02]} 16. Rc1 {[%emt 0:00:10]} h5 {[%emt 0:00:15]} 17. Qf3 {[%emt 0:00:08]} Qd8 {[%emt 0:00:06]} 18. Qg3 {[%emt 0:00:08]} Be7 {[%emt 0:00:16]} 19. a3 {[%emt 0:00:03]} Bh4 {[%emt 0:00:12]} 20. Qf3 {[%emt 0:00:09]} Be7 {[%emt 0:00:01]} 21. c4 {[%emt 0:00:05]} Nxd4 {[%emt 0:00:19]} 22. Bxd4 {[%emt 0:00:05]} dxc4 {[%emt 0:00:03]} 23. Bxc4 {[%emt 0:00:08]} Bc6 {[%emt 0:00:00]} 24. Qe3 {[%emt 0:00:09]} h4 {[%emt 0:00:10]} 25. Bb6 {[%emt 0:00:03]} Qd7 {[%emt 0:00:12]} 26. Rfd1 {[%emt 0:00:02]} Bd5 {[%emt 0:00:37]} 27. Bxd5 {[%emt 0:00:08]} exd5 {[%emt 0:00:06]} 28. h3 {[%emt 0:00:15]} O-O {[%emt 0:00:07]} 29. Qd3 {[%emt 0:00:13]} Rxc1 {[%emt 0:00:09]} 30. Rxc1 {[%emt 0:00:01]} Rc8 {[%emt 0:00:00]} 31. Rd1 {[%emt 0:00:03]} Qa4 {[%emt 0:00:07]} 32. f5 {[%emt 0:00:10]} Rc3 {[%emt 0:00:14]} 33. Qxd5 {[%emt 0:00:51]} 1-0

[Event "Austria Championship Blitz 2024"]
[Site "Innsbruck"]
[Date "2024.06.01"]
[Round "5.17"]
[White "Tumanyan, Gor"]
[Black "Casagrande, Harald"]
[Result "0-1"]
[ECO "B01"]
[WhiteElo "1992"]
[BlackElo "2290"]
[Annotator "RC"]
[PlyCount "132"]
[EventDate "2024.06.01"]
[EventType "swiss"]
[EventCountry "AUT"]
[SourceTitle "playchess.com"]
[Source "ChessBase"]
[SourceQuality "1"]
[TimeControl "180+2"]

1. e4 {[%emt 0:00:01]} d5 {[%emt 0:00:01]} 2. exd5 {[%emt 0:00:01]} Qxd5 {[%emt 0:00:01]} 3. Nf3 {[%emt 0:00:07]} Bg4 {[%emt 0:00:04]} 4. Be2 {[%emt 0:00:02]} Nc6 {[%emt 0:00:01]} 5. Nc3 {[%emt 0:00:01]} Qd7 {[%emt 0:00:03]} 6. O-O {[%emt 0:00:04]} Nf6 {[%emt 0:00:22]} 7. d3 {[%emt 0:00:01]} e6 {[%emt 0:00:11]} 8. Bf4 {[%emt 0:00:19]} Bd6 {[%emt 0:00:06]} 9. Bg3 {[%emt 0:00:28]} O-O {[%emt 0:00:03]} 10. Ne4 {[%emt 0:00:26]} Be7 {[%emt 0:00:26]} 11. Ne5 {[%emt 0:00:58]} Nxe5 {[%emt 0:00:12]} 12. Bxe5 {[%emt 0:00:02]} Bxe2 {[%emt 0:00:38]} 13. Qxe2 {[%emt 0:00:01]} Ne8 {[%emt 0:00:01]} 14. Rad1 {[%emt 0:00:06]} f6 {[%emt 0:00:02]} 15. Bc3 {[%emt 0:00:02]} Rd8 {[%emt 0:00:10]} 16. Rfe1 {[%emt 0:00:02]} c6 {[%emt 0:00:02]} 17. h3 {[%emt 0:00:19]} Nc7 {[%emt 0:00:01]} 18. b3 {[%emt 0:00:05]} Rfe8 {[%emt 0:00:02]} 19. Bb2 {[%emt 0:00:01]} Bb4 {[%emt 0:00:03]} 20. c3 {[%emt 0:00:03]} Bf8 {[%emt 0:00:02]} 21. d4 {[%emt 0:00:02]} Qf7 {[%emt 0:00:16]} 22. Bc1 {[%emt 0:00:08]} Nd5 {[%emt 0:00:07]} 23. Bb2 {[%emt 0:00:02]} Qg6 {[%emt 0:00:04]} 24. Qf3 {[%emt 0:00:02]} Nc7 {[%emt 0:00:08]} 25. Qg3 {[%emt 0:00:08]} Qxg3 {[%emt 0:00:03]} 26. Nxg3 {[%emt 0:00:02]} Kf7 {[%emt 0:00:01]} 27. Kf1 {[%emt 0:00:01]} Rd7 {[%emt 0:00:01]} 28. Rd2 {[%emt 0:00:04]} c5 {[%emt 0:00:05]} 29. Red1 {[%emt 0:00:03]} Red8 {[%emt 0:00:01]} 30. Ke1 {[%emt 0:00:06]} cxd4 {[%emt 0:00:02]} 31. Rxd4 {[%emt 0:00:02]} Rxd4 {[%emt 0:00:02]} 32. cxd4 {[%emt 0:00:02]} Bb4+ {[%emt 0:00:06]} 33. Ke2 {[%emt 0:00:01]} Nd5 {[%emt 0:00:00]} 34. Rc1 {[%emt 0:00:07]} Rd7 {[%emt 0:00:01]} 35. Ne4 {[%emt 0:00:03]} Nf4+ {[%emt 0:00:04]} 36. Ke3 {[%emt 0:00:05]} Nxg2+ {[%emt 0:00:02]} 37. Kf3 {[%emt 0:00:01]} Nh4+ {[%emt 0:00:01]} 38. Ke2 {[%emt 0:00:05]} Nf5 {[%emt 0:00:01]} 39. Rc4 {[%emt 0:00:03]} Be7 {[%emt 0:00:02]} 40. Nd2 {[%emt 0:00:02]} h5 {[%emt 0:00:05]} 41. Nf3 {[%emt 0:00:01]} g5 {[%emt 0:00:01]} 42. a4 {[%emt 0:00:04]} Nd6 {[%emt 0:00:01]} 43. Rc2 {[%emt 0:00:01]} Ne8 {[%emt 0:00:05]} 44. Rc8 {[%emt 0:00:02]} Rc7 {[%emt 0:00:05]} 45. Rxc7 {[%emt 0:00:06]} Nxc7 {[%emt 0:00:01]} 46. Kd3 {[%emt 0:00:00]} Bd6 {[%emt 0:00:01]} 47. Kc4 {[%emt 0:00:00]} Nd5 {[%emt 0:00:01]} 48. Bc3 {[%emt 0:00:02]} Nf4 {[%emt 0:00:02]} 49. h4 {[%emt 0:00:01]} g4 {[%emt 0:00:00]} 50. Ne1 {[%emt 0:00:02]} Nh3 {[%emt 0:00:04]} 51. Bb4 {[%emt 0:00:03]} Bxb4 {[%emt 0:00:02]} 52. Kxb4 {[%emt 0:00:01]} Nxf2 {[%emt 0:00:01]} 53. Kc3 {[%emt 0:00:01]} Ne4+ {[%emt 0:00:02]} 54. Kd3 {[%emt 0:00:01]} Nd6 {[%emt 0:00:01]} 55. Ng2 {[%emt 0:00:02]} e5 {[%emt 0:00:01]} 56. b4 {[%emt 0:00:03]} Ke6 {[%emt 0:00:01]} 57. b5 {[%emt 0:00:03]} Kd5 {[%emt 0:00:01]} 58. dxe5 {[%emt 0:00:01]} fxe5 {[%emt 0:00:00]} 59. Ne1 {[%emt 0:00:04]} e4+ {[%emt 0:00:03]} 60. Ke3 {[%emt 0:00:01]} Nf5+ {[%emt 0:00:02]} 61. Kf4 {[%emt 0:00:01]} Nxh4 {[%emt 0:00:01]} 62. Nc2 {[%emt 0:00:04]} Nf3 {[%emt 0:00:03]} 63. Ne3+ {[%emt 0:00:02]} Kd4 {[%emt 0:00:01]} 64. Nf5+ {[%emt 0:00:01]} Kd3 {[%emt 0:00:01]} 65. Ng3 {[%emt 0:00:02]} e3 {[%emt 0:00:03]} 66. Ne4 {[%emt 0:00:04]} e2 {[%emt 0:00:47]} 0-1

[Event "Austria Championship Blitz 2024"]
[Site "Innsbruck"]
[Date "2024.06.01"]
[Round "5.19"]
[White "Leonov, Leonid"]
[Black "Kondrak, Christoph"]
[Result "1-0"]
[ECO "B20"]
[WhiteElo "1739"]
[BlackElo "1972"]
[Annotator "RC"]
[PlyCount "49"]
[EventDate "2024.06.01"]
[EventType "swiss"]
[EventCountry "AUT"]
[SourceTitle "playchess.com"]
[Source "ChessBase"]
[SourceQuality "1"]
[TimeControl "180+2"]

1. e4 {[%emt 0:00:00]} c5 {[%emt 0:00:01]} 2. a3 {[%emt 0:00:01]} e6 {[%emt 0:00:01]} 3. b4 {[%emt 0:00:01]} cxb4 {[%emt 0:00:01]} 4. axb4 Bxb4 {[%emt 0:00:01]} 5. c3 {[%emt 0:00:02]} Be7 {[%emt 0:00:02]} 6. d4 {[%emt 0:00:01]} d6 {[%emt 0:00:02]} 7. Bd3 {[%emt 0:00:01]} Nf6 {[%emt 0:00:01]} 8. f4 {[%emt 0:00:01]} b6 {[%emt 0:00:13]} 9. Nf3 {[%emt 0:00:03]} Bb7 {[%emt 0:00:01]} 10. e5 {[%emt 0:00:01]} dxe5 {[%emt 0:00:09]} 11. fxe5 {[%emt 0:00:01]} Nd5 {[%emt 0:00:01]} 12. O-O {[%emt 0:00:04]} O-O {[%emt 0:00:06]} 13. Bc2 {[%emt 0:00:21]} Qc7 {[%emt 0:00:17]} 14. Qd3 {[%emt 0:00:02]} g6 {[%emt 0:00:01]} 15. Bh6 {[%emt 0:00:02]} Rd8 {[%emt 0:00:18]} 16. Ng5 {[%emt 0:00:08]} Bxg5 {[%emt 0:00:23]} 17. Bxg5 {[%emt 0:00:02]} Nc6 {[%emt 0:00:05]} 18. Bxd8 {[%emt 0:00:02]} Rxd8 {[%emt 0:00:01]} 19. Nd2 {[%emt 0:00:06]} Ncb4 {[%emt 0:00:29]} 20. cxb4 {[%emt 0:00:22]} Nxb4 {[%emt 0:00:01]} 21. Qh3 {[%emt 0:00:25]} Qxc2 {[%emt 0:00:05]} 22. Rxa7 {[%emt 0:00:09]} Ba6 {[%emt 0:00:14]} 23. Raxf7 {[%emt 0:00:17]} g5 {[%emt 0:00:27]} 24. Qh6 {[%emt 0:00:22]} Qg6 {[%emt 0:00:05]} 25. Rf8+ {[%emt 0:01:18]} 1-0

[Event "Austria Championship Blitz 2024"]
[Site "Innsbruck"]
[Date "2024.06.01"]
[Round "5.20"]
[White "Mira, Helene"]
[Black "Kuzmanovic, Zeljko"]
[Result "1-0"]
[ECO "E91"]
[WhiteElo "2047"]
[BlackElo "1866"]
[Annotator "RC"]
[PlyCount "104"]
[EventDate "2024.06.01"]
[EventType "swiss"]
[EventCountry "AUT"]
[SourceTitle "playchess.com"]
[Source "ChessBase"]
[SourceQuality "1"]
[TimeControl "180+2"]

1. d4 {[%emt 0:00:03]} Nf6 {[%emt 0:00:01]} 2. c4 {[%emt 0:00:01]} g6 {[%emt 0:00:01]} 3. Nc3 {[%emt 0:00:01]} Bg7 {[%emt 0:00:00]} 4. e4 {[%emt 0:00:00]} O-O {[%emt 0:00:02]} 5. Be2 {[%emt 0:00:01]} d6 {[%emt 0:03:08]} 6. Nf3 c5 {[%emt 0:00:00]} 7. d5 {[%emt 0:00:04]} Na6 {[%emt 0:00:00]} 8. Bg5 {[%emt 0:00:05]} h6 {[%emt 0:00:00]} 9. Bd2 {[%emt 0:00:03]} Nc7 {[%emt 0:00:00]} 10. O-O {[%emt 0:00:06]} a6 {[%emt 0:00:00]} 11. a4 {[%emt 0:00:01]} Bd7 {[%emt 0:00:00]} 12. Qc2 {[%emt 0:00:03]} Rb8 {[%emt 0:00:00]} 13. a5 {[%emt 0:00:20]} b6 {[%emt 0:00:00]} 14. axb6 {[%emt 0:00:03]} Rxb6 {[%emt 0:00:00]} 15. Rfb1 {[%emt 0:00:06]} Qa8 {[%emt 0:00:00]} 16. Ne1 {[%emt 0:00:17]} e6 {[%emt 0:00:00]} 17. Nd3 {[%emt 0:00:09]} exd5 {[%emt 0:00:00]} 18. exd5 {[%emt 0:00:07]} Bf5 {[%emt 0:00:00]} 19. Qa4 {[%emt 0:00:17]} Re8 {[%emt 0:00:00]} 20. Bf1 {[%emt 0:00:02]} Bxd3 {[%emt 0:00:00]} 21. Bxd3 {[%emt 0:00:02]} Rb4 {[%emt 0:00:00]} 22. Qc6 {[%emt 0:00:18]} Qxc6 {[%emt 0:00:00]} 23. dxc6 {[%emt 0:00:02]} Reb8 {[%emt 0:00:00]} 24. Bf4 {[%emt 0:00:32]} Nfe8 {[%emt 0:00:00]} 25. Nd5 {[%emt 0:00:09]} Be5 {[%emt 0:00:00]} 26. Bxe5 {[%emt 0:00:14]} dxe5 {[%emt 0:00:00]} 27. Nxb4 {[%emt 0:00:08]} Rxb4 {[%emt 0:00:00]} 28. b3 {[%emt 0:00:01]} Nd6 {[%emt 0:00:00]} 29. Bc2 {[%emt 0:00:02]} Kf8 {[%emt 0:00:00]} 30. Ra5 {[%emt 0:00:05]} Ke7 {[%emt 0:00:00]} 31. Rxc5 {[%emt 0:00:02]} Ke6 {[%emt 0:00:05]} 32. Re1 {[%emt 0:00:04]} f6 {[%emt 0:00:01]} 33. f4 {[%emt 0:00:01]} Nf7 {[%emt 0:00:09]} 34. Bxg6 {[%emt 0:00:09]} Nh8 {[%emt 0:00:06]} 35. Bc2 {[%emt 0:00:04]} Nf7 {[%emt 0:00:05]} 36. g4 {[%emt 0:00:02]} Rb8 {[%emt 0:00:04]} 37. Kf2 {[%emt 0:00:03]} Rd8 {[%emt 0:00:00]} 38. Re2 {[%emt 0:00:02]} Rd4 {[%emt 0:00:02]} 39. Kf3 {[%emt 0:00:02]} Rxf4+ {[%emt 0:00:01]} 40. Kg3 {[%emt 0:00:02]} Ng5 {[%emt 0:00:04]} 41. Bf5+ {[%emt 0:00:04]} Ke7 {[%emt 0:00:01]} 42. Rd2 {[%emt 0:00:05]} Rd4 {[%emt 0:00:11]} 43. Rxd4 {[%emt 0:00:01]} exd4 {[%emt 0:00:02]} 44. h4 {[%emt 0:00:07]} Nf7 {[%emt 0:00:02]} 45. Ra5 {[%emt 0:00:04]} Ne5 {[%emt 0:00:01]} 46. b4 {[%emt 0:00:03]} Nxc4 {[%emt 0:00:04]} 47. Ra1 {[%emt 0:00:01]} Ne5 {[%emt 0:00:05]} 48. Kf4 {[%emt 0:00:02]} d3 {[%emt 0:00:01]} 49. g5 {[%emt 0:00:02]} hxg5+ {[%emt 0:00:08]} 50. hxg5 {[%emt 0:00:01]} fxg5+ {[%emt 0:00:04]} 51. Kxe5 {[%emt 0:00:01]} d2 {[%emt 0:00:10]} 52. Rd1 {[%emt 0:00:03]} Ne8 {[%emt 0:00:08]} 1-0

[Event "Austria Championship Blitz 2024"]
[Site "Innsbruck"]
[Date "2024.06.01"]
[Round "5.21"]
[White "Babinetz, Rainer"]
[Black "Kummer, Helmut"]
[Result "0-1"]
[ECO "A09"]
[WhiteElo "1967"]
[BlackElo "2212"]
[Annotator "RC"]
[PlyCount "70"]
[EventDate "2024.06.01"]
[EventType "swiss"]
[EventCountry "AUT"]
[SourceTitle "playchess.com"]
[Source "ChessBase"]
[SourceQuality "1"]
[TimeControl "180+2"]

1. Nf3 {[%emt 0:00:01]} d5 {[%emt 0:00:01]} 2. c4 {[%emt 0:00:01]} d4 {[%emt 0:00:01]} 3. d3 {[%emt 0:00:04]} c5 {[%emt 0:00:02]} 4. g3 {[%emt 0:00:00]} Nc6 {[%emt 0:00:01]} 5. Bg2 {[%emt 0:00:01]} e5 {[%emt 0:00:03]} 6. a3 {[%emt 0:00:08]} a5 {[%emt 0:00:05]} 7. Qc2 {[%emt 0:00:01]} Be7 {[%emt 0:00:06]} 8. e3 {[%emt 0:00:01]} Nf6 {[%emt 0:00:01]} 9. O-O {[%emt 0:00:02]} O-O {[%emt 0:00:02]} 10. Nbd2 {[%emt 0:00:07]} Bf5 {[%emt 0:00:17]} 11. e4 {[%emt 0:00:02]} Bd7 {[%emt 0:00:01]} 12. h3 {[%emt 0:00:01]} Ne8 {[%emt 0:00:06]} 13. Nh2 {[%emt 0:00:09]} Qc8 {[%emt 0:00:05]} 14. g4 {[%emt 0:00:04]} Bd6 {[%emt 0:00:05]} 15. Re1 {[%emt 0:00:03]} Ne7 {[%emt 0:00:08]} 16. Ndf1 {[%emt 0:00:02]} Ng6 {[%emt 0:00:01]} 17. Ng3 {[%emt 0:00:13]} Nc7 {[%emt 0:00:02]} 18. Ne2 {[%emt 0:00:02]} Ne6 {[%emt 0:00:03]} 19. Rf1 {[%emt 0:00:01]} Qc7 {[%emt 0:00:12]} 20. Nf3 {[%emt 0:00:04]} Rab8 {[%emt 0:00:20]} 21. Bd2 {[%emt 0:00:03]} b6 {[%emt 0:00:04]} 22. Rab1 {[%emt 0:00:08]} f6 {[%emt 0:00:06]} 23. Qc1 {[%emt 0:00:01]} h6 {[%emt 0:00:03]} 24. Ng3 {[%emt 0:00:13]} Ng5 {[%emt 0:00:05]} 25. Nh2 {[%emt 0:00:08]} Nh4 {[%emt 0:00:05]} 26. f4 {[%emt 0:00:08]} exf4 {[%emt 0:00:02]} 27. Bxf4 {[%emt 0:00:01]} Bxf4 {[%emt 0:00:04]} 28. Qxf4 {[%emt 0:00:01]} Qxf4 {[%emt 0:00:02]} 29. Rxf4 {[%emt 0:00:01]} Rbe8 {[%emt 0:00:08]} 30. Nf5 {[%emt 0:00:05]} Bxf5 {[%emt 0:00:04]} 31. gxf5 {[%emt 0:00:02]} Nxg2 {[%emt 0:00:04]} 32. Kxg2 {[%emt 0:00:02]} Nf7 {[%emt 0:00:01]} 33. Ng4 {[%emt 0:00:06]} Ne5 {[%emt 0:00:01]} 34. Nxe5 {[%emt 0:00:01]} fxe5 {[%emt 0:00:05]} 35. b4 {[%emt 0:00:04]} exf4 {[%emt 0:00:01]} 0-1